fUSD/lending_fUSD_20260605
["ID","MTS","AMOUNT","RATE_DAILY","PERIOD"]
[424190943,1780636244000,-6975.40989862,0.000209,2]
[424190963,1780636244000,-401.0,0.00021,2]
[424190959,1780636244000,-150.0,0.00021,2]
[424190961,1780636244000,-287.0,0.00021,2]
[424190969,1780636244000,-945.0,0.00021,2]
[424190965,1780636244000,-199.0,0.00021,2]
[424190973,1780636244000,-430.830411,0.00021077,2]
[424190971,1780636244000,-490.0,0.00021,2]
[424190967,1780636244000,-986.0,0.00021,2]
[424190975,1780636244000,-541.02,0.00021199,2]
[424190983,1780636244000,-738.66,0.00021199,2]
[424190977,1780636244000,-500.0,0.00021199,2]
[424190981,1780636244000,-841.71,0.00021199,2]
[424190979,1780636244000,-500.0,0.00021199,2]
[424190985,1780636244000,-500.0,0.00021199,2]
[424190987,1780636244000,-500.0,0.00021199,2]
[424190991,1780636244000,-500.0,0.00021199,2]
[424190993,1780636244000,-619.29,0.00021199,2]
[424190874,1780636244000,-151.0,0.0002023,2]
[424190937,1780636244000,-6638.93606657,0.000209,2]
[424190914,1780636244000,-1006.30379578,0.000205,2]
[424190989,1780636244000,-500.0,0.00021199,2]
[424190921,1780636244000,-423.51822737,0.000206,2]
[424190919,1780636244000,-774.99975866,0.000205,2]
[424190859,1780636244000,-151.0,0.0002023,2]
[424190867,1780636244000,-151.0,0.0002023,2]
[424190865,1780636244000,-986.23109404,0.0002023,2]
[424190878,1780636244000,-151.0,0.0002023,2]
[424190857,1780636244000,-151.0,0.0002023,2]
[424190863,1780636244000,-151.0,0.0002023,2]
[424190880,1780636244000,-151.0,0.0002023,2]
[424190885,1780636244000,-151.0,0.0002023,2]
[424190891,1780636244000,-6638.93606657,0.000203,2]
[424190882,1780636244000,-151.0,0.0002023,2]
[424190887,1780636244000,-151.0,0.0002023,2]
[424190894,1780636244000,-10645.30346355,0.000203,2]
[424190902,1780636244000,-1366.0,0.00020312,2]
[424190861,1780636244000,-151.0,0.0002023,2]
[424190896,1780636244000,-1006.30379578,0.000203,2]
[424190898,1780636244000,-6975.40989862,0.000203,2]
[424190931,1780636244000,-6975.40989862,0.000207,2]
[424190933,1780636244000,-2157.14243826,0.00020778,2]
[424190929,1780636244000,-1006.30379578,0.000207,2]
[424190927,1780636244000,-10645.30346355,0.000207,2]
[424190925,1780636244000,-6638.93606657,0.000207,2]
[424190916,1780636244000,-6975.40989862,0.000205,2]
[424190923,1780636244000,-2246.68319865,0.00020639,2]
[424190910,1780636244000,-6638.93606657,0.000205,2]
[424190906,1780636244000,-745.6,0.00020381,2]
[424190908,1780636244000,-423.51822737,0.000204,2]
[424190900,1780636244000,-774.99975866,0.000203,2]
[424190912,1780636244000,-10645.30346355,0.000205,2]
[424190904,1780636244000,-1356.0,0.00020312,2]
[424191073,1780636245000,-745.6,0.00022353,2]
[424191069,1780636245000,-490.0,0.00022,2]
[424191067,1780636245000,-299.73,0.00022,2]
[424191084,1780636245000,-152.0,0.00022724,2]
[424191082,1780636245000,-2405.55389863,0.00022422,2]
[424191065,1780636245000,-945.0,0.00022,2]
[424191079,1780636245000,-289.10596703,0.00022407,2]
[424191077,1780636245000,-289.10596703,0.00022407,2]
[424191061,1780636245000,-199.0,0.00022,2]
[424191063,1780636245000,-986.0,0.00022,2]
[424191086,1780636245000,-152.0,0.00022755,2]
[424191088,1780636245000,-1147.38187975,0.00022772,2]
[424191105,1780636245000,-287.0,0.00023,2]
[424191075,1780636245000,-289.10596704,0.00022407,2]
[424191090,1780636245000,-2494.55939288,0.0002297,2]
[424191092,1780636245000,-2016.0,0.00023,2]
[424191106,1780636245000,-401.0,0.00023,2]
[424191103,1780636245000,-638.0,0.00023,2]
[424191109,1780636245000,-986.0,0.00023,2]
[424191099,1780636245000,-1910.0,0.00023,2]
[424191094,1780636245000,-510.0,0.00023,2]
[424191107,1780636245000,-199.0,0.00023,2]
[424191096,1780636245000,-366.0,0.00023,2]
[424191057,1780636245000,-287.0,0.00022,2]
[424191101,1780636245000,-551.0,0.00023,2]
[424191071,1780636245000,-78664.78668186,0.00022188,2]
[424191059,1780636245000,-401.0,0.00022,2]
[424191021,1780636245000,-6638.93606657,0.000216,2]
[424191054,1780636245000,-638.0,0.00022,2]
[424191111,1780636245000,-945.0,0.00023,2]
[424191001,1780636245000,-1006.30379578,0.000212,2]
[424191005,1780636245000,-2236.95670847,0.00021326,2]
[424191003,1780636245000,-6975.40989862,0.000212,2]
[424190995,1780636245000,-500.0,0.00021199,2]
[424190999,1780636245000,-10645.30346355,0.000212,2]
[424191007,1780636245000,-6638.93606657,0.000214,2]
[424191009,1780636245000,-10645.30346355,0.000214,2]
[424191011,1780636245000,-1006.30379578,0.000214,2]
[424190997,1780636245000,-6638.93606657,0.000212,2]
[424191013,1780636245000,-6975.40989862,0.000214,2]
[424191015,1780636245000,-2500.0,0.00021556,2]
[424191017,1780636245000,-1100.0,0.00021556,2]
[424191019,1780636245000,-1500.0,0.00021556,7]
[424191023,1780636245000,-10645.30346355,0.000216,2]
[424191027,1780636245000,-6975.40989862,0.000216,2]
[424191025,1780636245000,-1006.30379578,0.000216,2]
[424191031,1780636245000,-10645.30346355,0.000218,2]
[424191029,1780636245000,-1280.36,0.00021712,2]
[424191037,1780636245000,-5000.0,0.00021918,2]
[424191039,1780636245000,-624.0,0.00021918,2]
[424191035,1780636245000,-2319.72410669,0.00021874,2]
[424191041,1780636245000,-10645.30346355,0.00022,2]
[424191044,1780636245000,-2016.0,0.00022,2]
[424191046,1780636245000,-510.0,0.00022,2]
[424191048,1780636245000,-366.0,0.00022,2]
[424191050,1780636245000,-1910.0,0.00022,2]
[424191052,1780636245000,-551.0,0.00022,2]
[424191114,1780636245000,-490.0,0.00023,2]
[424191128,1780636245000,-1910.0,0.00024,2]
[424191120,1780636245000,-2586.85809042,0.00023518,2]
[424191185,1780636245000,-217.0,0.00025,2]
[424191188,1780636245000,-955.0,0.00025,2]
[424191187,1780636245000,-994.0,0.00025,2]
[424191190,1780636245000,-496.0,0.00025,2]
[424191192,1780636245000,-439.09,0.00025,2]
[424191195,1780636245000,-439.09,0.00025,2]
[424191197,1780636245000,-439.09,0.00025,2]
[424191199,1780636245000,-439.09,0.00025,2]
[424191212,1780636245000,-439.09,0.00025,2]
[424191210,1780636245000,-439.09,0.00025,2]
[424191204,1780636245000,-439.09,0.00025,2]
[424191201,1780636245000,-439.09,0.00025,2]
[424191183,1780636245000,-417.0,0.00025,2]
[424191206,1780636245000,-439.09,0.00025,2]
[424191208,1780636245000,-439.09,0.00025,2]
[424191216,1780636245000,-2884.75459676,0.00025162,2]
[424191227,1780636245000,-745.6,0.00026296,2]
[424191218,1780636245000,-1000.0,0.00025652,2]
[424191229,1780636245000,-200.0,0.00026565,2]
[424191232,1780636245000,-78664.78668186,0.00026637,2]
[424191225,1780636245000,-182.58,0.00026027,31]
[424191234,1780636245000,-1147.38187975,0.00026762,2]
[424191223,1780636245000,-1400.0,0.00026,12]
[424191221,1780636245000,-2991.49051684,0.0002571,2]
[424191118,1780636245000,-1280.36,0.00023424,7]
[424191238,1780636245000,-1280.36,0.00026847,7]
[424191214,1780636245000,-1280.36,0.00025135,7]
[424191181,1780636245000,-302.0,0.00025,2]
[424191236,1780636245000,-922.04138685,0.0002679,2]
[424191174,1780636245000,-1922.32375611,0.00025,2]
[424191179,1780636245000,-646.0,0.00025,2]
[424191132,1780636245000,-638.0,0.00024,2]
[424191126,1780636245000,-366.0,0.00024,2]
[424191124,1780636245000,-510.0,0.00024,2]
[424191130,1780636245000,-551.0,0.00024,2]
[424191134,1780636245000,-287.0,0.00024,2]
[424191136,1780636245000,-401.0,0.00024,2]
[424191122,1780636245000,-2016.0,0.00024,2]
[424191138,1780636245000,-199.0,0.00024,2]
[424191143,1780636245000,-945.0,0.00024,2]
[424191145,1780636245000,-490.0,0.00024,2]
[424191149,1780636245000,-2246.68319865,0.00024257,2]
[424191141,1780636245000,-986.0,0.00024,2]
[424191116,1780636245000,-182.58,0.00023288,2]
[424191147,1780636245000,-2682.57183977,0.00024066,2]
[424191176,1780636245000,-551.63696878,0.00025,2]
[424191168,1780636245000,-2018.0,0.00025,2]
[424191172,1780636245000,-372.29368085,0.00025,2]
[424191151,1780636245000,-361.02,0.000243,14]
[424191162,1780636245000,-2781.82699784,0.00024614,2]
[424191170,1780636245000,-526.73520161,0.00025,2]
[424191155,1780636245000,-78664.78668186,0.00024412,2]
[424191166,1780636245000,-299.73,0.00024805,7]
[424191164,1780636245000,-1000.0,0.00024658,2]
[424191159,1780636245000,-1000.0,0.00024555,2]
[424191153,1780636245000,-745.6,0.00024324,2]
[424191157,1780636245000,-500.0,0.00024555,2]
[424191284,1780636246000,-1000.0,0.00028,12]
[424191285,1780636246000,-200.0,0.00028118,2]
[424191282,1780636246000,-1000.0,0.00028,12]
[424191286,1780636246000,-745.6,0.00028267,2]
[424191274,1780636246000,-2246.68319865,0.00027876,2]
[424191280,1780636246000,-177.76936586,0.00027951,2]
[424191279,1780636246000,-172.25230703,0.00027951,2]
[424191281,1780636246000,-157.02447642,0.00027951,2]
[424191283,1780636246000,-1000.0,0.00028,12]
[424191278,1780636246000,-158.3725934,0.00027951,2]
[424191294,1780636246000,-277.0,0.00028347,2]
[424191290,1780636246000,-150.0,0.00028347,20]
[424191293,1780636246000,-200.0,0.00028347,2]
[424191298,1780636246000,-477.94,0.0002863,30]
[424191291,1780636246000,-500.0,0.00028347,2]
[424191295,1780636246000,-1280.36,0.00028559,7]
[424191287,1780636246000,-403.22283143,0.00028274,7]
[424191292,1780636246000,-200.0,0.00028347,2]
[424191297,1780636246000,-672.17793522,0.00028604,2]
[424191288,1780636246000,-500.0,0.00028347,30]
[424191300,1780636246000,-818.54,0.0002863,30]
[424191299,1780636246000,-249.04,0.0002863,2]
[424191275,1780636246000,-500.0,0.00027914,2]
[424191289,1780636246000,-500.0,0.00028347,2]
[424191277,1780636246000,-185.96609897,0.00027951,2]
[424191258,1780636246000,-737.46,0.00027397,20]
[424191268,1780636246000,-3370.02,0.000274,2]
[424191240,1780636246000,-1357.0,0.00026916,2]
[424191246,1780636246000,-1273.0,0.00026916,2]
[424191244,1780636246000,-525.0,0.00026916,2]
[424191242,1780636246000,-3553.0,0.00026916,2]
[424191252,1780636246000,-200.0,0.00027342,2]
[424191250,1780636246000,-500.0,0.00027137,2]
[424191248,1780636246000,-3641.0,0.00026916,2]
[424191247,1780636246000,-1227.0,0.00026916,2]
[424191249,1780636246000,-933.0,0.00026916,2]
[424191255,1780636246000,-1500.0,0.00027397,2]
[424191257,1780636246000,-300.0,0.00027397,2]
[424191272,1780636246000,-299.73,0.0002761,7]
[424191254,1780636246000,-415.43870545,0.00027397,2]
[424191265,1780636246000,-3370.02,0.000274,2]
[424191260,1780636246000,-11895.43,0.00027397,10]
[424191263,1780636246000,-183.96,0.000274,7]
[424191269,1780636246000,-3370.02,0.000274,2]
[424191270,1780636246000,-500.0,0.000275,7]
[424191264,1780636246000,-3370.02,0.000274,2]
[424191261,1780636246000,-9912.86,0.00027397,10]
[424191262,1780636246000,-8260.71,0.00027397,10]
[424191267,1780636246000,-3370.02,0.000274,2]
[424191273,1780636246000,-500.0,0.00027699,2]
[424191271,1780636246000,-452.32649715,0.00027562,2]
[424191259,1780636246000,-14274.52,0.00027397,10]
[424191302,1780636246000,-478.24,0.0002863,30]
[424191296,1780636246000,-168.04448379,0.00028604,2]
[424191301,1780636246000,-724.84,0.0002863,30]
[424191335,1780636246000,-249.07,0.0002882,2]
[424191336,1780636246000,-249.04,0.00028852,7]
[424191342,1780636246000,-150.0,0.000289,2]
[424191338,1780636246000,-78664.78668186,0.00028862,2]
[424191346,1780636246000,-1893.4,0.00028936,2]
[424191339,1780636246000,-249.04,0.00028883,30]
[424191344,1780636246000,-249.04,0.00028915,2]
[424191343,1780636246000,-150.0,0.000289,2]
[424191337,1780636246000,-249.07,0.00028852,7]
[424191345,1780636246000,-249.07,0.00028915,2]
[424191334,1780636246000,-249.04,0.0002882,2]
[424191340,1780636246000,-249.07,0.00028883,30]
[424191341,1780636246000,-200.0,0.00028895,2]
[424191347,1780636246000,-1000.0,0.00028942,2]
[424191349,1780636246000,-249.04,0.00028947,7]
[424191352,1780636246000,-818.54,0.00028964,2]
[424191350,1780636246000,-249.07,0.00028947,7]
[424191351,1780636246000,-477.94,0.00028964,2]
[424191354,1780636246000,-478.24,0.00028964,2]
[424191356,1780636246000,-697.94,0.00028964,2]
[424191353,1780636246000,-724.84,0.00028964,2]
[424191348,1780636246000,-358.48,0.00028942,2]
[424191355,1780636246000,-818.67,0.00028964,2]
[424191357,1780636246000,-249.04,0.00028979,30]
[424191303,1780636246000,-818.67,0.0002863,30]
[424191328,1780636246000,-477.94,0.00028797,7]
[424191329,1780636246000,-818.54,0.00028797,7]
[424191305,1780636246000,-249.07,0.0002863,2]
[424191324,1780636246000,-249.07,0.00028756,7]
[424191332,1780636246000,-818.67,0.00028797,7]
[424191307,1780636246000,-249.07,0.00028661,7]
[424191304,1780636246000,-697.94,0.0002863,30]
[424191309,1780636246000,-249.04,0.00028693,30]
[424191308,1780636246000,-500.0,0.00028692,3]
[424191317,1780636246000,-600.0,0.00028732,2]
[424191318,1780636246000,-600.0,0.00028732,2]
[424191313,1780636246000,-600.0,0.00028732,2]
[424191315,1780636246000,-600.0,0.00028732,2]
[424191312,1780636246000,-249.07,0.00028725,2]
[424191316,1780636246000,-600.0,0.00028732,2]
[424191310,1780636246000,-249.07,0.00028693,30]
[424191320,1780636246000,-600.0,0.00028732,2]
[424191319,1780636246000,-600.0,0.00028732,2]
[424191306,1780636246000,-249.04,0.00028661,7]
[424191322,1780636246000,-270.0,0.00028732,2]
[424191326,1780636246000,-249.04,0.00028788,30]
[424191330,1780636246000,-724.84,0.00028797,7]
[424191325,1780636246000,-216.86219559,0.00028767,2]
[424191327,1780636246000,-249.07,0.00028788,30]
[424191333,1780636246000,-697.94,0.00028797,7]
[424191331,1780636246000,-478.24,0.00028797,7]
[424191323,1780636246000,-249.04,0.00028756,7]
[424191321,1780636246000,-600.0,0.00028732,2]
[424191311,1780636246000,-249.04,0.00028725,2]
[424191314,1780636246000,-600.0,0.00028732,2]
[424191400,1780636247000,-344.50461406,0.00029265,2]
[424191395,1780636247000,-249.15,0.00029232,7]
[424191393,1780636247000,-163.43,0.000292,14]
[424191397,1780636247000,-187.90777922,0.00029265,2]
[424191402,1780636247000,-355.53873172,0.00029265,2]
[424191399,1780636247000,-161.16349994,0.00029265,2]
[424191394,1780636247000,-249.04,0.00029201,2]
[424191401,1780636247000,-162.66613139,0.00029265,2]
[424191392,1780636247000,-249.04,0.00029169,30]
[424191390,1780636247000,-179.94019266,0.00029156,2]
[424191391,1780636247000,-184.92793941,0.00029156,2]
[424191404,1780636247000,-172.08557199,0.00029265,2]
[424191396,1780636247000,-371.93219795,0.00029265,2]
[424191403,1780636247000,-314.04895284,0.00029265,2]
[424191427,1780636247000,-551.0,0.00029484,30]
[424191405,1780636247000,-818.28,0.00029299,7]
[424191414,1780636247000,-945.0,0.00029415,30]
[424191413,1780636247000,-986.0,0.00029415,30]
[424191408,1780636247000,-724.84,0.00029299,7]
[424191412,1780636247000,-199.0,0.00029415,30]
[424191410,1780636247000,-818.67,0.00029299,7]
[424191411,1780636247000,-697.94,0.00029299,7]
[424191407,1780636247000,-818.54,0.00029299,7]
[424191416,1780636247000,-287.0,0.00029416,30]
[424191415,1780636247000,-490.0,0.00029415,30]
[424191419,1780636247000,-500.0,0.00029452,2]
[424191420,1780636247000,-724.84,0.00029467,2]
[424191388,1780636247000,-188.0,0.00029134,2]
[424191417,1780636247000,-401.0,0.00029416,30]
[424191406,1780636247000,-477.94,0.00029299,7]
[424191398,1780636247000,-316.74518679,0.00029265,2]
[424191376,1780636247000,-230.0,0.00029134,2]
[424191385,1780636247000,-167.45,0.00029134,2]
[424191360,1780636247000,-150.0,0.00029,7]
[424191358,1780636247000,-249.07,0.00028979,30]
[424191359,1780636247000,-566.03,0.00029,2]
[424191362,1780636247000,-2023.74176922,0.00029,2]
[424191374,1780636247000,-818.67,0.00029132,30]
[424191372,1780636247000,-724.84,0.00029132,30]
[424191370,1780636247000,-477.94,0.00029132,30]
[424191371,1780636247000,-818.54,0.00029132,30]
[424191373,1780636247000,-478.24,0.00029132,30]
[424191364,1780636247000,-249.04,0.0002901,2]
[424191363,1780636247000,-2023.74176922,0.00029,2]
[424191361,1780636247000,-2023.74176925,0.00029,2]
[424191366,1780636247000,-500.0,0.00029014,2]
[424191367,1780636247000,-249.04,0.00029042,7]
[424191365,1780636247000,-249.07,0.0002901,2]
[424191368,1780636247000,-249.04,0.00029074,30]
[424191369,1780636247000,-249.04,0.00029105,2]
[424191375,1780636247000,-697.94,0.00029132,30]
[424191418,1780636247000,-3957.0,0.00029421,5]
[424191386,1780636247000,-150.0,0.00029134,2]
[424191378,1780636247000,-220.0,0.00029134,2]
[424191377,1780636247000,-174.0,0.00029134,2]
[424191380,1780636247000,-250.0,0.00029134,2]
[424191381,1780636247000,-247.204,0.00029134,2]
[424191379,1780636247000,-208.58,0.00029134,2]
[424191387,1780636247000,-151.376,0.00029134,2]
[424191384,1780636247000,-250.0,0.00029134,2]
[424191382,1780636247000,-166.946,0.00029134,2]
[424191383,1780636247000,-246.38,0.00029134,2]
[424191389,1780636247000,-249.04,0.00029137,7]
[424191426,1780636247000,-1910.0,0.00029472,30]
[424191409,1780636247000,-478.24,0.00029299,7]
[424191424,1780636247000,-510.0,0.00029472,30]
[424191465,1780636247000,-206.9214002,0.00029863,2]
[424191470,1780636247000,-3553.0,0.00029916,2]
[424191468,1780636247000,-798.0,0.00029863,2]
[424191472,1780636247000,-1273.0,0.00029916,2]
[424191466,1780636247000,-798.0,0.00029863,2]
[424191463,1780636247000,-500.0,0.00029863,2]
[424191467,1780636247000,-798.0,0.00029863,2]
[424191464,1780636247000,-395.95458229,0.00029863,2]
[424191471,1780636247000,-525.0,0.00029916,2]
[424191474,1780636247000,-3641.0,0.00029916,2]
[424191483,1780636247000,-369.85587882,0.0003003,2]
[424191485,1780636247000,-150.0,0.00030036,2]
[424191484,1780636247000,-150.0,0.00030036,2]
[424191473,1780636247000,-1227.0,0.00029916,2]
[424191469,1780636247000,-1357.0,0.00029916,2]
[424191475,1780636247000,-933.0,0.00029916,2]
[424191478,1780636247000,-157.69945209,0.0003003,2]
[424191481,1780636247000,-359.88038532,0.0003003,2]
[424191482,1780636247000,-209.79513205,0.0003003,2]
[424191480,1780636247000,-176.3877322,0.0003003,2]
[424191479,1780636247000,-273.53592164,0.0003003,2]
[424191477,1780636247000,-163.43,0.0003,14]
[424191422,1780636247000,-500.0,0.00029469,4]
[424191486,1780636247000,-150.0,0.00030036,2]
[424191493,1780636247000,-218.0,0.0003009,2]
[424191487,1780636247000,-409.0,0.00030041,2]
[424191490,1780636247000,-500.0,0.00030066,14]
[424191489,1780636247000,-1348.0,0.00030042,2]
[424191492,1780636247000,-150.0,0.0003009,2]
[424191491,1780636247000,-280.0,0.0003009,2]
[424191476,1780636247000,-200.0,0.00029984,2]
[424191462,1780636247000,-500.0,0.00029863,2]
[424191488,1780636247000,-1335.0,0.00030042,2]
[424191460,1780636247000,-500.0,0.00029863,2]
[424191461,1780636247000,-500.0,0.00029863,2]
[424191423,1780636247000,-2016.0,0.00029472,30]
[424191421,1780636247000,-697.94,0.00029467,2]
[424191425,1780636247000,-366.0,0.00029472,30]
[424191428,1780636247000,-638.0,0.00029484,30]
[424191432,1780636247000,-697.94,0.00029634,30]
[424191438,1780636247000,-183.29088506,0.00029863,2]
[424191429,1780636247000,-150.0,0.00029534,2]
[424191440,1780636247000,-500.0,0.00029863,2]
[424191431,1780636247000,-724.84,0.00029634,30]
[424191433,1780636247000,-200.0,0.00029672,2]
[424191442,1780636247000,-500.0,0.00029863,2]
[424191439,1780636247000,-500.0,0.00029863,2]
[424191437,1780636247000,-333.21260063,0.00029863,2]
[424191434,1780636247000,-150.0,0.00029863,2]
[424191430,1780636247000,-751.83,0.00029634,30]
[424191444,1780636247000,-500.0,0.00029863,2]
[424191436,1780636247000,-150.0,0.00029863,2]
[424191449,1780636247000,-500.0,0.00029863,2]
[424191450,1780636247000,-500.0,0.00029863,2]
[424191453,1780636247000,-150.0,0.00029863,2]
[424191452,1780636247000,-150.0,0.00029863,2]
[424191451,1780636247000,-412.34598771,0.00029863,2]
[424191445,1780636247000,-458.88921959,0.00029863,2]
[424191447,1780636247000,-500.0,0.00029863,2]
[424191459,1780636247000,-500.0,0.00029863,2]
[424191456,1780636247000,-500.0,0.00029863,2]
[424191458,1780636247000,-500.0,0.00029863,2]
[424191455,1780636247000,-150.0,0.00029863,2]
[424191457,1780636247000,-196.34132809,0.00029863,2]
[424191454,1780636247000,-500.0,0.00029863,2]
[424191531,1780636248000,-180.79,0.00030411,120]
[424191527,1780636248000,-471.12,0.000302,2]
[424191526,1780636248000,-287.63343486,0.00030165,2]
[424191535,1780636248000,-490.0,0.00030415,30]
[424191534,1780636248000,-945.0,0.00030415,30]
[424191525,1780636248000,-164.88141543,0.00030165,2]
[424191519,1780636248000,-533.30809758,0.00030142,2]
[424191517,1780636248000,-516.75692109,0.00030142,2]
[424191523,1780636248000,-344.17114397,0.00030142,2]
[424191537,1780636248000,-287.0,0.00030416,30]
[424191529,1780636248000,-500.0,0.00030247,5]
[424191533,1780636248000,-986.0,0.00030415,30]
[424191528,1780636248000,-745.6,0.00030239,2]
[424191536,1780636248000,-299.73,0.00030415,7]
[424191530,1780636248000,-272.0,0.00030376,2]
[424191524,1780636248000,-150.97685756,0.00030142,2]
[424191539,1780636248000,-2016.0,0.00030472,30]
[424191538,1780636248000,-401.0,0.00030416,30]
[424191540,1780636248000,-510.0,0.00030472,30]
[424191547,1780636248000,-315.39890417,0.00030612,2]
[424191518,1780636248000,-325.33226279,0.00030142,2]
[424191549,1780636248000,-249.57640641,0.00030612,2]
[424191532,1780636248000,-199.0,0.00030415,30]
[424191513,1780636248000,-475.11778019,0.00030142,2]
[424191508,1780636248000,-1280.36,0.00030137,7]
[424191522,1780636248000,-150.84333888,0.00030142,2]
[424191543,1780636248000,-551.0,0.00030484,30]
[424191498,1780636248000,-500.0,0.00030136,2]
[424191494,1780636248000,-150.0,0.000301,7]
[424191495,1780636248000,-500.0,0.00030136,2]
[424191497,1780636248000,-500.0,0.00030136,2]
[424191496,1780636248000,-500.0,0.00030136,2]
[424191500,1780636248000,-500.0,0.00030136,2]
[424191510,1780636248000,-183.34863654,0.00030142,2]
[424191511,1780636248000,-557.89829692,0.00030142,2]
[424191499,1780636248000,-500.0,0.00030136,2]
[424191502,1780636248000,-500.0,0.00030136,2]
[424191503,1780636248000,-500.0,0.00030136,2]
[424191504,1780636248000,-287.44,0.00030137,2]
[424191501,1780636248000,-500.0,0.00030136,2]
[424191506,1780636248000,-160.56,0.00030137,2]
[424191509,1780636248000,-500.0,0.00030141,120]
[424191505,1780636248000,-160.56,0.00030137,2]
[424191507,1780636248000,-160.56,0.00030137,2]
[424191512,1780636248000,-164.78997262,0.00030142,2]
[424191514,1780636248000,-375.81555843,0.00030142,2]
[424191516,1780636248000,-322.32699987,0.00030142,2]
[424191520,1780636248000,-186.95540388,0.00030142,2]
[424191515,1780636248000,-221.05097278,0.00030142,2]
[424191521,1780636248000,-471.07342925,0.00030142,2]
[424191550,1780636248000,-539.82057798,0.00030612,2]
[424191593,1780636248000,-373.91080777,0.00030726,2]
[424191542,1780636248000,-1910.0,0.00030472,30]
[424191577,1780636248000,-439.99812462,0.00030726,2]
[424191573,1780636248000,-295.61346109,0.00030726,2]
[424191574,1780636248000,-168.99923428,0.00030726,2]
[424191576,1780636248000,-258.22345054,0.00030726,2]
[424191578,1780636248000,-689.00922812,0.00030726,2]
[424191580,1780636248000,-711.07746344,0.00030726,2]
[424191590,1780636248000,-301.95371511,0.00030726,2]
[424191589,1780636248000,-202.10553148,0.00030726,2]
[424191583,1780636248000,-628.09790567,0.00030726,2]
[424191582,1780636248000,-197.4380264,0.00030726,2]
[424191581,1780636248000,-366.03011418,0.00030726,2]
[424191586,1780636248000,-431.21537812,0.00030726,2]
[424191579,1780636248000,-487.99839418,0.00030726,2]
[424191588,1780636248000,-201.66888235,0.00030726,2]
[424191585,1780636248000,-516.25671596,0.00030726,2]
[424191587,1780636248000,-243.30551453,0.00030726,2]
[424191592,1780636248000,-357.40327709,0.00030726,2]
[424191591,1780636248000,-300.31430622,0.00030726,2]
[424191597,1780636248000,-219.94581357,0.0003075,2]
[424191595,1780636248000,-346.99801681,0.0003075,2]
[424191594,1780636248000,-301.68667776,0.00030726,2]
[424191546,1780636248000,-391.65461382,0.00030612,2]
[424191596,1780636248000,-286.42275714,0.0003075,2]
[424191575,1780636248000,-483.49049981,0.00030726,2]
[424191568,1780636248000,-329.57994525,0.00030726,2]
[424191584,1780636248000,-176.5847132,0.00030726,2]
[424191570,1780636248000,-563.72333765,0.00030726,2]
[424191544,1780636248000,-638.0,0.00030484,30]
[424191541,1780636248000,-366.0,0.00030472,30]
[424191571,1780636248000,-633.49037359,0.00030726,2]
[424191545,1780636248000,-4947.0,0.00030569,5]
[424191548,1780636248000,-547.07184328,0.00030612,2]
[424191551,1780636248000,-419.59026409,0.00030612,2]
[424191553,1780636248000,-179.13102429,0.00030612,2]
[424191552,1780636248000,-554.78381822,0.00030612,2]
[424191561,1780636248000,-193.71628383,0.00030726,2]